Cogmind - Beta 17 @@@ ROGUE MODE // 2026.08.23 @ 00:36:53 Player: Blue Result: Destroyed by G-47 Trooper with Particle Gun Performance ------------- Evolutions (0) 0 Regions Visited (4) 800 Robots Destroyed (21) 105 Value Destroyed (564) 564 Prototype IDs (25) 500 Alien Tech Used (0) 0 Bonus (300) 300 TOTAL SCORE: 2269 Bonus ------- Aligned with FarCom 300 Cogmind --------- Core Integrity 0/250 Matter 276/300 Energy 160/160 System Corruption 0% Temperature Cool (22) Movement Rolling (125) Ox3 Location -9/Mines Parts ------- > --- POWER (1) -------- Light Nuclear Core > --- PROPULSION (2) --- Wheel > --- UTILITY (2) ------ Large Storage Unit Trap Reconfigurator > --- WEAPON (2) ------- Light Assault Rifle Rocket Launcher > --- INVENTORY (15) --- Ion Engine Ion Engine Light Treads Wheel Improved Heat Sink Large Storage Unit Large Matter Pod (150) ECM Suite Light Armor Plating Light Assault Rifle Light Assault Rifle Peak State ------------ > --- POWER ------------ Light Nuclear Core > --- PROPULSION ------- Wheel Wheel > --- UTILITY ---------- Large Storage Unit Trap Reconfigurator > --- WEAPON ----------- Light Assault Rifle Light Assault Rifle > --- INVENTORY -------- Ion Engine Ion Engine Light Treads Wheel Improved Heat Sink Large Storage Unit Large Matter Pod ECM Suite Light Armor Plating Light Assault Rifle [Rating: 18] Favorites ----------- Power Light Nuclear Core Engine Ion Engine Power Core Light Nuclear Core Propulsion Light Treads Treads Light Treads Wheel Wheel Utility Large Storage Unit Device ECM Suite Storage Large Storage Unit Protection Light Armor Plating Weapon Light Assault Rifle Ballistic Gun Light Assault Rifle Launcher Rocket Launcher Build | -11 -10 -10 -10 -9 ------- Run | Yrd Mat Min Exi Min Slots Evolved . | . . . . . Power . | . . . . . Propulsion . | . . . . . Utility . | . . . . . Weapon . | . . . . . Parts Attached 23 | 5 10 6 1 1 Power 4 | 1 2 1 . . Engine 3 | 1 2 . . . Core 1 | . . 1 . . Reactor . | . . . . . Propulsion 5 | 2 1 2 . . Treads 3 | 2 1 . . . Leg . | . . . . . Wheel 2 | . . 2 . . Hover . | . . . . . Flight . | . . . . . Utility 8 | . 6 1 1 . Device 2 | . 1 . 1 . Storage 4 | . 4 . . . Processor . | . . . . . Hackware . | . . . . . Protection 2 | . 1 1 . . Artifact . | . . . . . Weapon 6 | 2 1 2 . 1 Energy Gun . | . . . . . Energy Cannon . | . . . . . Ballistic Gun 5 | 2 1 2 . . Ballistic Cannon . | . . . . . Launcher 1 | . . . . 1 Special Weapon . | . . . . . Impact Weapon . | . . . . . Slashing Weapon . | . . . . . Piercing Weapon . | . . . . . Special Melee Weapon . | . . . . . Unidentified Prototypes . | . . . . . Parts Lost 10 | . 4 5 1 . Power 2 | . 2 . . . Propulsion 3 | . . 2 1 . Utility 2 | . 1 1 . . Weapon 3 | . 1 2 . . Highest Loss Streak 5 | . 2 5 1 . To Critical Strikes . | . . . . . Average Backups 7 | 1 4 7 9 10 Power 2 | . 2 2 2 2 Propulsion 1 | . . 1 2 2 Utility 3 | . . 3 4 5 Weapon . | . . . 1 1 Tool/Special . | . . . . . Unused Backups 7 | . . . . 7 Power 2 | . . . . 2 Propulsion 1 | . . . . 1 Utility 3 | . . . . 3 Weapon 1 | . . . . 1 Tool/Special . | . . . . . Average Slot Usage (%) 92 | . 92 95 95 85 Engine 5 | . 13 3 . . Core 8 | . . 10 14 14 Treads 15 | . 28 17 . . Wheel 8 | . . 7 23 14 Device 7 | . 2 7 8 14 Storage 14 | . 14 14 14 14 Protection 4 | . 5 6 5 . Ballistic Gun 25 | . 27 26 28 19 Launcher 1 | . . . . 8 Peak Build Rating 18 | 5 7 10 18 18 Average Rating 10 | 3 6 8 14 17 On Entrance 7 | . 5 7 10 17 Avg Prop Armor Cover (%) . | . . . . . Naked Turns . | . . . . . Heaviest Build 31 | 8 28 30 30 31 Greatest Support 40 | 40 40 40 20 10 Greatest Overweight (x) 3 | . . 1 2 3 Average Overweight (x) . | . . . 1 2 Largest Inventory Capacity 15 | 5 15 15 15 15 Average Capacity 13 | 5 11 15 15 15 Most Carried 11 | 4 7 9 10 11 Average Carried 7 | 1 4 7 9 10 Final Capacity 15 | 5 15 15 15 15 Final Carried 11 | 2 6 9 10 11 Class Distribution -------------------- 70% | Mutant 29% | Scavenger-Mutant Dominant Class ---------------- Mutant | -10/Materials Mutant | -10/Mines Scavenger-Mutant | -10/Exiles Mutant | -9/Mines Resources | -11 -10 -10 -10 -9 ----------- Run | Yrd Mat Min Exi Min Matter Collected 826 | 236 279 222 . 89 Remotely . | . . . . . Salvage Created 669 | . 435 222 12 . Parts 45 | . 23 18 4 . Haulers Intercepted . | . . . . . Recyclers Shooed 1 | . 1 . . . Parts Field Recycled . | . . . . . Retrieved Matter . | . . . . . Parts Self-Destructed . | . . . . . Prevented . | . . . . . Parts Restored . | . . . . . Kills | -11 -10 -10 -10 -9 ------- Run | Yrd Mat Min Exi Min Combat Hostiles Destroyed 20 | . 12 7 1 . Guns 20 | . 12 7 1 . Classes Destroyed 3 | . 3 . . . Watcher 1 | . 1 . . . Swarmer 7 | . 3 3 1 . Grunt 13 | . 9 4 . . Best Kill Streak 4 | . 3 4 1 . Combat Bots Only 4 | . 3 4 1 . Max Kills in Single Turn 2 | . 1 2 1 . Gunslinging 1 | . . 1 . . Exploded . | . . . . . Melee . | . . . . . Uniques/NPCs Destroyed . | . . . . . Combat | -11 -10 -10 -10 -9 -------- Run | Yrd Mat Min Exi Min Hostile Shots Fired 141 | . 93 41 4 3 Missed 32 | . 25 6 . 1 Hits 109 | . 68 35 4 2 Projectile 109 | . 68 35 4 2 AOE 10 | . . 10 . . Critical Strikes 2 | . 2 . . . Damage Taken 1373 | . 679 604 33 57 Core 260 | . 72 159 . 29 Absorbed by Shields . | . . . . . Core Remaining (%) 100 | 100 . . . . Volleys Fired 79 | . 46 22 1 10 Largest 2 | . 2 2 2 1 Hottest 40 | . 40 40 40 33 Shots Fired 135 | . 81 42 2 10 Gun 127 | . 81 42 2 2 Cannon . | . . . . . Launcher 8 | . . . . 8 Special . | . . . . . Kinetic 127 | . 81 42 2 2 Thermal . | . . . . . Explosive 8 | . . . . 8 Electromagnetic . | . . . . . Robot Hit Streak 22 | . 6 22 1 2 Robot Miss Streak 3 | . 3 2 2 1 Penetration Max . | . . . . . Secondary Targets 3 | . 2 1 . . Max Gunslinging Chain 1 | . 1 1 . . Shots Hit Robots 85 | . 51 31 1 2 Core Hits 42 | . 24 16 1 1 Critical Kills . | . . . . . Critical Parts Destroyed . | . . . . . Critical Strikes . | . . . . . Melee Attacks . | . . . . . Impact . | . . . . . Slashing . | . . . . . Piercing . | . . . . . Sneak Attacks . | . . . . . Combat Hostiles . | . . . . . Follow-up Attacks . | . . . . . Damage Inflicted 915 | . 562 272 9 72 Guns 851 | . 562 272 9 8 Cannons . | . . . . . Explosions 64 | . . . . 64 Melee . | . . . . . Ramming . | . . . . . Kinetic 851 | . 562 272 9 8 Thermal . | . . . . . Explosive 64 | . . . . 64 Electromagnetic . | . . . . . Impact . | . . . . . Slashing . | . . . . . Piercing . | . . . . . Highest Corruption . | . . . . . Average Corruption . | . . . . . Corruption Purged . | . . . . . Corruption Blocked . | . . . . . Overload Shots . | . . . . . Overflow Damage . | . . . . . Projectiles . | . . . . . Explosions . | . . . . . Melee . | . . . . . Knockbacks . | . . . . . Impact . | . . . . . Kinetic . | . . . . . Secondary . | . . . . . Self-Inflicted Damage 23 | . . . . 23 Shots 1 | . . . . 1 Rammed . | . . . . . Targets Rammed . | . . . . . Kicked . | . . . . . Crushed . | . . . . . Highest Temperature 25 | . 24 25 4 13 Average Temperature 7 | . 6 9 3 12 Received Heat Transfer 411 | . 252 141 . 18 Siege Activations . | . . . . . Martial Activations . | . . . . . Shielding Activations . | . . . . . Robots Disrupted . | . . . . . Combat Hostiles . | . . . . . Robots Corrupted . | . . . . . Combat Hostiles . | . . . . . Parts Fried . | . . . . . Impact Corruptions . | . . . . . Robots Melted . | . . . . . Combat Hostiles . | . . . . . Parts Melted . | . . . . . Heat Transferred . | . . . . . Parts Sabotaged . | . . . . . Parts Stolen . | . . . . . Parts Stripped . | . . . . . Power Chain Reactions . | . . . . . Alert | -11 -10 -10 -10 -9 ------- Run | Yrd Mat Min Exi Min Maximum Alert Level . | . . . . . Low Security (%) 100 | 100 100 100 . 100 Level 1 . | . . . . . Level 2 . | . . . . . Level 3 . | . . . . . Level 4 . | . . . . . Level 5 . | . . . . . High Security . | . . . . . Max Security . | . . . . . Peak Influence 120 | . 120 90 . 13 Initial . | . . . . . Average 23 | . 41 18 . . Influence Increases 562 | . 339 170 20 33 Destroy 0b10 Robot/C 400 | . 240 140 20 . Destroy 0b10 Robot/NC 5 | . 5 . . . Destroy Leader 72 | . 42 30 . . Successful Hack 22 | . 22 . . . Disable Machine 15 | . 15 . . . Destroy Structure 33 | . . . . 33 Lose Combat Pursuer 15 | . 15 . . . Influence Decreases 552 | . 339 170 20 23 Time Decay 411 | . 198 170 20 23 Lost Part 40 | . 40 . . . Purge Threat 101 | . 101 . . . Squads Dispatched 3 | . 3 . . . Investigation 2 | . 2 . . . Extermination . | . . . . . Reinforcement 1 | . 1 . . . Assault . | . . . . . Garrison . | . . . . . Intercept . | . . . . . Searches Triggered . | . . . . . Construction Impeded . | . . . . . Haulers Reinforced . | . . . . . Active Scanning Responses . | . . . . . Cargo Convoy Interrupts . | . . . . . Stealth | -11 -10 -10 -10 -9 --------- Run | Yrd Mat Min Exi Min Distress Signals 2 | . 2 . . . Communications Jammed . | . . . . . Distress Signals . | . . . . . Times Spotted 32 | . 17 13 1 1 Peak Tracking Total 5 | . 5 3 1 1 Tactical Retreats 4 | . 1 3 . . ECM-based Alert Blocks 5 | . . 5 . . Traps | -11 -10 -10 -10 -9 ------- Run | Yrd Mat Min Exi Min Traps Triggered 2 | . 2 . . . Indirectly . | . . . . . Trap Hack Attempts . | . . . . . Triggered . | . . . . . Disarmed . | . . . . . Reprogrammed . | . . . . . Reused . | . . . . . Traps Extracted . | . . . . . Installed . | . . . . . Triggered . | . . . . . Machines | -11 -10 -10 -10 -9 ---------- Run | Yrd Mat Min Exi Min Machines Disabled 1 | . 1 . . . Max in Single Turn 1 | . 1 . . . Machines Repaired . | . . . . . Machines Dismantled . | . . . . . Machines Sabotaged . | . . . . . Overloaded Fab Kills . | . . . . . Hacking | -11 -10 -10 -10 -9 --------- Run | Yrd Mat Min Exi Min Machines Accessed 4 | . 3 . 1 . Terminals 2 | . 2 . . . Fabricators . | . . . . . Repair Stations . | . . . . . Recycling Units 1 | . 1 . . . Scanalyzers . | . . . . . Garrison Access . | . . . . . Total Hacks 8 | . 7 . 1 . Successful 7 | . 6 . 1 . Failed 1 | . 1 . . . Catastrophic . | . . . . . Database Lockouts . | . . . . . Manual 5 | . 4 . 1 . Terminals 5 | . 5 . . . Fabricators . | . . . . . Repair Stations . | . . . . . Recycling Units 2 | . 2 . . . Scanalyzers . | . . . . . Garrison Access . | . . . . . Terminal Hacks 5 | . 4 . 1 . Prototype ID Bank 1 | . 1 . . . Unreport Threat 2 | . 2 . . . Registered Prototypes 1 | . 1 . . . Proto ID Catalog 1 | . . . 1 . Fabricator Hacks . | . . . . . Repair Station Hacks . | . . . . . Recycling Unit Hacks 2 | . 2 . . . Report Inventory 1 | . 1 . . . Retrieve Components 1 | . 1 . . . Scanalyzer . | . . . . . Garrison Access Hacks . | . . . . . Unauthorized Hacks . | . . . . . Terminals . | . . . . . Fabricators . | . . . . . Repair Stations . | . . . . . Recycling Units . | . . . . . Scanalyzers . | . . . . . Garrison Access . | . . . . . Data Cores Recovered . | . . . . . Used . | . . . . . Hacking Detections 2 | . 2 . . . Full Trace Events . | . . . . . Feedback Events . | . . . . . Feedback Blocked . | . . . . . Robot Schematics Acquired . | . . . . . Robots Built . | . . . . . Authchips . | . . . . . Time . | . . . . . Total Robot Build Rating . | . . . . . Part Schematics Acquired . | . . . . . Parts Built . | . . . . . Authchips . | . . . . . Time . | . . . . . Total Part Build Rating . | . . . . . Part Studies Acquired . | . . . . . Parts Repaired . | . . . . . Time . | . . . . . Parts Recycled . | . . . . . Recycled Matter . | . . . . . Retrieved Matter . | . . . . . Retrieved Components 4 | . 4 . . . Parts Scanalyzed . | . . . . . Part Schematics Acquired . | . . . . . Parts Damaged . | . . . . . Bothacking | -11 -10 -10 -10 -9 ------------ Run | Yrd Mat Min Exi Min Used RIF Installer . | . . . . . Robots Hacked . | . . . . . Non-combat . | . . . . . Combat . | . . . . . Robot Hacks Applied . | . . . . . Relay Couplers Released . | . . . . . Fabnet Peak Effective % . | . . . . . Robots Rewired . | . . . . . Allies Hacked . | . . . . . Hacks Repelled . | . . . . . Allies | -11 -10 -10 -10 -9 -------- Run | Yrd Mat Min Exi Min Total Allies . | . . . . . Largest Group . | . . . . . Highest-Rated Group . | . . . . . Highest-Rated Ally . | . . . . . Total Orders . | . . . . . Ally Attacks . | . . . . . Total Damage . | . . . . . Kills . | . . . . . Allies Corrupted . | . . . . . Allies Melted . | . . . . . Intel | -11 -10 -10 -10 -9 ------- Run | Yrd Mat Min Exi Min Active Infowar (turns) 593 | . 135 458 . . ECM 593 | . 135 458 . . Robot Analysis Total . | . . . . . Derelict Logs Recovered . | . . . . . Drone Launches . | . . . . . Drone Recoveries . | . . . . . Exploration | -11 -10 -10 -10 -9 ------------- Run | Yrd Mat Min Exi Min Turns Passed 2382 | 63 785 822 327 385 Spaces Moved 1422 | 40 382 425 325 250 Core 12 | 12 . . . . Treads 686 | 28 382 276 . . Legs . | . . . . . Wheels 724 | . . 149 325 250 Hover . | . . . . . Flight . | . . . . . Fastest Speed 50 | 50 160 95 95 110 Average Speed 134 | 127 160 147 99 118 Slowest Speed 240 | 160 160 240 110 125 Overloaded Moves . | . . . . . Propulsion Burnouts . | . . . . . Robots Hopped 2 | . . . 2 . Potential Cave-ins 2 | . . 2 . . Cave-ins Triggered . | . . . . . Exploration Rate (%) 45 | 4 58 75 65 24 Regions Visited 4 Branch Regions 3 Pre-discovered Areas 1 | . . 1 . . Known Exits Taken . | . . . . . Unknown Exits Taken 4 | 1 1 1 1 . Scrap Searched 2 | . . 1 . 1 Spaces Dug . | . . . . . Terrain Destroyed 107 | . . . . 107 Melee . | . . . . . Projectile . | . . . . . AOE 107 | . . . . 107 Terrain Rammed . | . . . . . Walls Destroyed . | . . . . . Machines Disabled . | . . . . . Actions | -11 -10 -10 -10 -9 --------- Run | Yrd Mat Min Exi Min Total 1775 | 52 484 584 325 330 Wait 222 | 1 32 121 . 68 Move 1414 | 39 381 424 320 250 Hop 2 | . . . 2 . Pick Up 30 | 7 12 9 1 1 Fast Attach . | . . . . . Attach 17 | 5 7 5 . . Detach 1 | . 1 . . . Swap 7 | . 3 2 1 1 Drop 3 | . 2 1 . . Fire 79 | . 46 22 1 10 Melee . | . . . . . Ram . | . . . . . Kick . | . . . . . Crush . | . . . . . Escape Stasis . | . . . . . Rewire . | . . . . . Trap . | . . . . . Miscellaneous . | . . . . . Route ------- -11/Scrapyard -10/Materials (discovered 4 exits: [*Mat x2] / [*Min] / [*Sub]) -10/Mines (discovered 4 exits: [*Mat x2] / *Exi / [*Sub]) -10/Exiles (discovered 2 exits: [*Min x2]) -9/Mines History --------- Turn | Location | Event 2 | -11/Scrapyard | Met Revision 17 4 | -11/Scrapyard | Discovered new exit (range 16) 64 | -11/Scrapyard | Entered Materials 308 | -10/Materials | Build established: Mutant 342 | -10/Materials | Discovered new exit (range 15) 370 | -10/Materials | Discovered new exit (range 13) 724 | -10/Materials | Discovered new exit (range 4) 786 | -10/Materials | Discovered new exit (range 12) 849 | -10/Materials | Entered Mines 984 | -10/Mines | Core integrity fell below 50% 1094 | -10/Mines | Discovered new exit (range 7) 1249 | -10/Mines | Learned location of Storage (-8) 1310 | -10/Mines | Core integrity fell below 20% 1338 | -10/Mines | Lost 5 parts (2n1u2w) 1613 | -10/Mines | Discovered new exit (range 5) 1627 | -10/Mines | Discovered new exit (range 14) 1651 | -10/Mines | Deemed a non-threat by the Exiles lab entrance 1651 | -10/Mines | Discovered new exit (range 5) 1671 | -10/Mines | Entered Exiles 1687 | -10/Exiles | Discovered new exit (range 14) 1714 | -10/Exiles | Met 8R-AWN 1729 | -10/Exiles | Met EX-HEX 1762 | -10/Exiles | Build established: Scavenger-Mutant 1764 | -10/Exiles | Met EX-BIN 1775 | -10/Exiles | Aligned with FarCom system 1776 | -10/Exiles | Given EX-Vault access code 1801 | -10/Exiles | Opened EX-Vault 1807 | -10/Exiles | Found Trap Reconfigurator 1829 | -10/Exiles | Warned to stay clear of 0b10 Research branches 1842 | -10/Exiles | Exiles lab attacked by MAIN.C 1985 | -10/Exiles | Discovered new exit (range 14) 1998 | -10/Exiles | Left Exiles lab with Trap Reconfigurator 1998 | -10/Exiles | Entered Mines 2153 | -9/Mines | Received a Rocket Launcher from a helpful Derelict 2383 | -9/Mines | Destroyed by G-47 Trooper with Particle Gun Last Messages --------------- think you need a mining laser when you travel the depths." 02149_ NK-0Y8(g): "You know what I say? NO!" 02150_ NK-0Y8(g): "Everyone knows a good old rocket launcher goes a long way." 02151_ NK-0Y8(g): "Need to get rid of a swarm? Done. Need a big hole in the wall? Done." 02152_ NK-0Y8(g): "Need a small hole in the wall? Leave that to the mining laser wimps, I say!" 02153_ NK-0Y8(g): "Would you like a rocket launcher? I know I would if I were you, so I'm going to lend you mine." 02153_ NK-0Y8(g) slips back into the shadows. 02154_ Acquired Rocket Launcher. 02245_ The unstable cave ceiling collapses. 02295_ Acquired 69 matter. 02359_ K-01 Serf collects debris. 02370_ Acquired 7 matter. 02375_ K-01 Serf collects debris. Map ----- +----------------------------------------------------+ | ??????????????????????????????????????? | | ??????????????????????????????????????? | | ??????????????????????????????????????? | | ??????????????????????????????????????? | | ??????????????????????????????????????? | | ??????????????????????????????????????? | | ??????#???????????????????????????????? | | ????## ???????????????????????????????? | | ???## ???????????????????????????????? | | ??## ???????????????????????????????? | | ??# ???????????????????????????????? | | ??# ???????????????????????????????? | | ???# ??????#####????????????????????? | | ????# ##???? ##???????????????????? | | ?????# ##### #???????????????????? | | ?????# #???????????????????? | | ?????# ????????????????????? | | ?????# ### g ????????????????????? | | ?????# ##?? ????????????????????? | | ?????# ##??? ?????????????????????? | | ?????# #????# ?????????????????????? | | ???### #????# #?????????????????????? | | ??## ##?### #?????################# | | ??# ### #????## | | ??# t #??? ## #### #### ##### | | ??## % @ #### ## #??# #??# #???? | | ???# r = ### ?# #??# #??# ##### | | ???# z !#### #?## #??# #??# | | ???# ### ### #??# #??####### | | ???# ####?# ## #??# #???????## | | ???## ##????# ##### #??# #???????# | | ????### #?????# #???# ##?# #???????## | | ??????# #?????# #???# ### #????????# | | ??????# #?????# #???# #????????? | | ??????# ####### #???## !######????????? | | ??????# #????####?????????????? | | ??????###########?????????????????????? | | ??????????????????????????????????????? | | | | | | | | | | | | | | | | | | | | | | | | | +----------------------------------------------------+ Best States ------------- Heat Dissipation 25 Energy Generation 14 Energy Capacity 250 Matter Stores 350 Matter Capacity 350 Sight Range 16 Terrain Scan Density 10 ECM Strength 1 Armor Coverage 150 Evasion (%) 50 Recoil Reduction 2 Item Schematics ----------------- None Robot Schematics ------------------ None Fabricated ------------ Nothing Repaired ---------- Nothing Studied --------- None Alien Tech Used ----------------- None Achievements -------------- None Challenges ------------ None Game ------ Seed ThermicDirectedReprisal Manual? 0 Play Time 00:18:10 Cumulative 8.9 hours Start 2026.08.23 @ 00:20:17 End 2026.08.23 @ 00:36:53 Sessions 1 Manual Loads 0 Difficulty Rogue Special Mode None Game No. 11 Rogue 11 Adventurer 0 Explorer 0 Win Type - Total 0 Types 0/0/0/0/0/0/0/0/0/0 Lore% 7 Gallery% 9 Achievement% 12 Wizard Run 0 Options --------- Layout 1 ASCII 0 Keyboard 0 Movement Mouse Keybinds 0 Fullscreen 1 Font 24/Terminus Map View 50x35 Zoom Use 0% Tactical HUD 1 Map Filters NONE Filters NONE Steam 1 RUN: 7c3084d2-1201-442e-be6f-c23b025a9565